[Event "Titled Tuesday Blitz January 31 Late 2023"]
[White "ritanovikova"]
[Black "Llanos, Guillermo"]
[BlackFideId "100358"]
[WhiteElo "2217"]
[BlackElo "2290"]
[Result "1-0"]
[Round "02"]
[TimeControl "180+2"]
[Date "2023.01.31"]
[WhiteClock "0:00:11"]
[BlackClock "0:00:23"]

1. e4 {[%clk 0:02:20]}  Nf6 {[%clk 0:02:57]} 2. e5 {[%clk 0:02:14]}  Nd5 {[%clk 0:02:56]} 3. c4 {[%clk 0:02:14]}  Nb6 {[%clk 0:02:55]} 4. d4 {[%clk 0:02:14]}  d6 {[%clk 0:02:55]} 5. exd6 {[%clk 0:02:15]}  cxd6 {[%clk 0:02:55]} 6. Nf3 {[%clk 0:02:15]}  g6 {[%clk 0:02:55]} 7. h3 {[%clk 0:02:15]}  Bg7 {[%clk 0:02:56]} 8. Nc3 {[%clk 0:02:14]}  O-O {[%clk 0:02:56]} 9. Be3 {[%clk 0:02:13]}  Nc6 {[%clk 0:02:56]} 10. Be2 {[%clk 0:02:12]}  Bf5 {[%clk 0:02:55]} 11. O-O {[%clk 0:02:12]}  d5 {[%clk 0:02:54]} 12. c5 {[%clk 0:02:11]}  Nc4 {[%clk 0:02:54]} 13. Bxc4 {[%clk 0:02:10]}  dxc4 {[%clk 0:02:54]} 14. d5 {[%clk 0:02:09]}  Nb4 {[%clk 0:02:52]} 15. Bd4 {[%clk 0:01:55]}  Bd3 {[%clk 0:02:46]} 16. Bxg7 {[%clk 0:01:45]}  Kxg7 {[%clk 0:02:46]} 17. Re1 {[%clk 0:01:14]}  Nc2 {[%clk 0:02:44]} 18. b3 {[%clk 0:01:13]}  Nxa1 {[%clk 0:02:42]} 19. Qxa1 {[%clk 0:01:12]}  Kg8 {[%clk 0:02:41]} 20. Ne5 {[%clk 0:01:05]}  Bf5 {[%clk 0:02:31]} 21. bxc4 {[%clk 0:01:03]}  Qa5 {[%clk 0:02:18]} 22. g4 {[%clk 0:00:56]}  Bc8 {[%clk 0:02:15]} 23. c6 {[%clk 0:00:54]}  f6 {[%clk 0:02:10]} 24. cxb7 {[%clk 0:00:50]}  Bxb7 {[%clk 0:02:10]} 25. Nd7 {[%clk 0:00:40]}  Rf7 {[%clk 0:02:03]} 26. Ne4 {[%clk 0:00:25]}  Rc8 {[%clk 0:01:50]} 27. g5 {[%clk 0:00:23]}  Rxc4 {[%clk 0:01:27]} 28. gxf6 {[%clk 0:00:19]}  Qxd5 {[%clk 0:01:25]} 29. fxe7 {[%clk 0:00:16]}  Qxd7 {[%clk 0:00:36]} 30. Nf6+ {[%clk 0:00:10]}  Rxf6 {[%clk 0:00:35]} 31. e8=Q+ {[%clk 0:00:10]}  Qxe8 {[%clk 0:00:33]} 32. Rxe8+ {[%clk 0:00:11]}  Rf8 {[%clk 0:00:30]} 33. Rxf8+ {[%clk 0:00:10]}  Kxf8 {[%clk 0:00:30]} 34. Qh8+ {[%clk 0:00:11]}  Kf7 {[%clk 0:00:29]} 35. Qxh7+ {[%clk 0:00:11]}  Kf6 {[%clk 0:00:30]} 36. Qxb7 {[%clk 0:00:11]}  Kg5 {[%clk 0:00:28]} 37. Qxa7 {[%clk 0:00:11]}  Rf4 {[%clk 0:00:26]} 38. Kg2 {[%clk 0:00:11]}  Rf5 {[%clk 0:00:26]} 39. Qe7+ {[%clk 0:00:12]}  Kh6 {[%clk 0:00:25]} 40. Qe3+ {[%clk 0:00:12]}  Kh5 {[%clk 0:00:24]} 41. a4 {[%clk 0:00:12]}  g5 {[%clk 0:00:24]} 42. Qc3 {[%clk 0:00:12]}  Kg6 {[%clk 0:00:23]} 43. a5 {[%clk 0:00:11]} 1-0


[Site "https://www.chess.com"]

[Event "Titled Tuesday Blitz January 31 Late 2023"]
[White "Bouget, Alexandre"]
[Black "EdmundPlayer"]
[WhiteFideId "681318"]
[WhiteElo "2267"]
[BlackElo "2313"]
[Result "0-1"]
[Round "02"]
[TimeControl "180+2"]
[Date "2023.01.31"]
[WhiteClock "0:00:01"]
[BlackClock "0:00:06"]

1. d4 {[%clk 0:02:40]}  Nf6 {[%clk 0:02:58]} 2. c4 {[%clk 0:02:36]}  g6 {[%clk 0:02:58]} 3. Nc3 {[%clk 0:02:36]}  d5 {[%clk 0:02:58]} 4. Nf3 {[%clk 0:02:25]}  Bg7 {[%clk 0:02:58]} 5. h4 {[%clk 0:02:24]}  c5 {[%clk 0:02:34]} 6. dxc5 {[%clk 0:02:22]}  Qa5 {[%clk 0:02:26]} 7. Bd2 {[%clk 0:02:17]}  Qxc5 {[%clk 0:02:24]} 8. cxd5 {[%clk 0:02:12]}  Nxd5 {[%clk 0:02:22]} 9. h5 {[%clk 0:02:06]}  Nxc3 {[%clk 0:02:17]} 10. bxc3 {[%clk 0:02:03]}  gxh5 {[%clk 0:01:51]} 11. Rc1 {[%clk 0:01:51]}  Nc6 {[%clk 0:01:46]} 12. Be3 {[%clk 0:01:48]}  Bxc3+ {[%clk 0:01:26]} 13. Bd2 {[%clk 0:01:42]}  Bxd2+ {[%clk 0:01:25]} 14. Qxd2 {[%clk 0:01:43]}  Qb4 {[%clk 0:01:06]} 15. Rxh5 {[%clk 0:01:37]}  Bg4 {[%clk 0:00:44]} 16. Rd5 {[%clk 0:01:16]}  Qxd2+ {[%clk 0:00:38]} 17. Nxd2 {[%clk 0:01:13]}  Be6 {[%clk 0:00:38]} 18. Rb5 {[%clk 0:01:13]}  O-O-O {[%clk 0:00:33]} 19. a4 {[%clk 0:01:08]}  a6 {[%clk 0:00:27]} 20. Rb2 {[%clk 0:01:05]}  Rd4 {[%clk 0:00:22]} 21. e3 {[%clk 0:00:56]}  Rxa4 {[%clk 0:00:19]} 22. Bb5 {[%clk 0:00:57]}  Ra5 {[%clk 0:00:14]} 23. Bxc6 {[%clk 0:00:52]}  bxc6 {[%clk 0:00:15]} 24. Rxc6+ {[%clk 0:00:52]}  Kd7 {[%clk 0:00:14]} 25. Rc3 {[%clk 0:00:48]}  Rc8 {[%clk 0:00:11]} 26. Rb7+ {[%clk 0:00:42]}  Kd8 {[%clk 0:00:11]} 27. Rxc8+ {[%clk 0:00:26]}  Bxc8 {[%clk 0:00:12]} 28. Ra7 {[%clk 0:00:26]}  Ra1+ {[%clk 0:00:12]} 29. Ke2 {[%clk 0:00:25]}  Bd7 {[%clk 0:00:09]} 30. Ne4 {[%clk 0:00:20]}  Bb5+ {[%clk 0:00:08]} 31. Kd2 {[%clk 0:00:21]}  f6 {[%clk 0:00:07]} 32. Nc5 {[%clk 0:00:20]}  Ra2+ {[%clk 0:00:07]} 33. Kc3 {[%clk 0:00:16]}  Rxf2 {[%clk 0:00:06]} 34. g4 {[%clk 0:00:12]}  Rg2 {[%clk 0:00:05]} 35. Ne6+ {[%clk 0:00:05]}  Ke8 {[%clk 0:00:05]} 36. g5 {[%clk 0:00:05]}  fxg5 {[%clk 0:00:04]} 37. Kd4 {[%clk 0:00:04]}  Kf7 {[%clk 0:00:04]} 38. Nd8+ {[%clk 0:00:03]}  Kf6 {[%clk 0:00:04]} 39. Nb7 {[%clk 0:00:03]}  h5 {[%clk 0:00:04]} 40. Nc5 {[%clk 0:00:02]}  h4 {[%clk 0:00:04]} 41. e4 {[%clk 0:00:03]}  h3 {[%clk 0:00:04]} 42. e5+ {[%clk 0:00:04]}  Kg6 {[%clk 0:00:04]} 43. Rxe7 {[%clk 0:00:02]}  h2 {[%clk 0:00:04]} 44. Re6+ {[%clk 0:00:02]}  Kg7 {[%clk 0:00:03]} 45. Re7+ {[%clk 0:00:01]}  Kg8 {[%clk 0:00:04]} 46. Ne6 {[%clk 0:00:01]}  h1=Q {[%clk 0:00:04]} 47. Rg7+ {[%clk 0:00:02]}  Kh8 {[%clk 0:00:04]} 48. Rxg5 {[%clk 0:00:01]}  Qd1+ {[%clk 0:00:05]} 49. Kc5 {[%clk 0:00:01]}  Rxg5 {[%clk 0:00:06]} 50. Nxg5 {[%clk 0:00:01]}  Qc2+ {[%clk 0:00:06]} 0-1


[Site "https://www.chess.com"]

[Event "Titled Tuesday Blitz January 31 Late 2023"]
[White "Almedina Ortiz, Edgardo J."]
[Black "Wartiovaara, Oliver"]
[WhiteFideId "3100197"]
[BlackFideId "513024"]
[WhiteElo "2156"]
[BlackElo "2264"]
[Result "0-1"]
[Round "02"]
[TimeControl "180+2"]
[Date "2023.01.31"]
[WhiteClock "0:00:16"]
[BlackClock "0:01:02"]

1. d4 {[%clk 0:02:59]}  Nf6 {[%clk 0:02:59]} 2. c4 {[%clk 0:02:59]}  c5 {[%clk 0:02:57]} 3. d5 {[%clk 0:02:58]}  e6 {[%clk 0:02:58]} 4. Nc3 {[%clk 0:02:58]}  exd5 {[%clk 0:02:57]} 5. cxd5 {[%clk 0:02:59]}  d6 {[%clk 0:02:58]} 6. e4 {[%clk 0:02:51]}  g6 {[%clk 0:02:58]} 7. h3 {[%clk 0:02:51]}  Bg7 {[%clk 0:02:57]} 8. Nf3 {[%clk 0:02:51]}  O-O {[%clk 0:02:56]} 9. Bd3 {[%clk 0:02:51]}  Re8 {[%clk 0:02:53]} 10. O-O {[%clk 0:02:44]}  Nbd7 {[%clk 0:02:50]} 11. Bf4 {[%clk 0:02:39]}  Ne5 {[%clk 0:02:37]} 12. Nxe5 {[%clk 0:02:34]}  dxe5 {[%clk 0:02:36]} 13. Be3 {[%clk 0:02:33]}  b6 {[%clk 0:02:30]} 14. a3 {[%clk 0:02:27]}  Bf8 {[%clk 0:02:26]} 15. Rb1 {[%clk 0:02:16]}  a5 {[%clk 0:02:23]} 16. Qe2 {[%clk 0:02:15]}  Bd7 {[%clk 0:02:22]} 17. Rfd1 {[%clk 0:02:09]}  Bd6 {[%clk 0:02:21]} 18. f3 {[%clk 0:01:50]}  Nh5 {[%clk 0:02:13]} 19. Qf2 {[%clk 0:01:49]}  Qf6 {[%clk 0:02:11]} 20. Ne2 {[%clk 0:01:42]}  Nf4 {[%clk 0:02:05]} 21. Nxf4 {[%clk 0:01:34]}  exf4 {[%clk 0:02:06]} 22. Bd2 {[%clk 0:01:34]}  Be5 {[%clk 0:02:04]} 23. Kh1 {[%clk 0:01:29]}  g5 {[%clk 0:01:58]} 24. b4 {[%clk 0:01:20]}  cxb4 {[%clk 0:01:58]} 25. axb4 {[%clk 0:01:19]}  a4 {[%clk 0:01:58]} 26. Bc4 {[%clk 0:01:10]}  b5 {[%clk 0:01:42]} 27. Ba2 {[%clk 0:01:09]}  h5 {[%clk 0:01:40]} 28. Bc1 {[%clk 0:00:59]}  g4 {[%clk 0:01:36]} 29. Bb2 {[%clk 0:00:48]}  g3 {[%clk 0:01:29]} 30. Bxe5 {[%clk 0:00:39]}  Qxe5 {[%clk 0:01:25]} 31. Qb2 {[%clk 0:00:35]}  Qxb2 {[%clk 0:01:19]} 32. Rxb2 {[%clk 0:00:34]}  Rac8 {[%clk 0:01:19]} 33. Kg1 {[%clk 0:00:34]}  Rc3 {[%clk 0:01:17]} 34. Kf1 {[%clk 0:00:27]}  Kg7 {[%clk 0:01:04]} 35. Re1 {[%clk 0:00:22]}  f6 {[%clk 0:01:03]} 36. Ke2 {[%clk 0:00:17]}  Rec8 {[%clk 0:01:02]} 37. Kd2 {[%clk 0:00:16]}  a3 {[%clk 0:01:02]} 0-1


[Site "https://www.chess.com"]

[Event "Titled Tuesday Blitz January 31 Late 2023"]
[White "SilverCityIndigo"]
[Black "Curtis, John"]
[BlackFideId "3200256"]
[WhiteElo "2443"]
[BlackElo "2292"]
[Result "1/2-1/2"]
[Round "02"]
[TimeControl "180+2"]
[Date "2023.01.31"]
[WhiteClock "0:00:08"]
[BlackClock "0:00:01"]

1. a3 {[%clk 0:03:00]}  d5 {[%clk 0:02:59]} 2. Nf3 {[%clk 0:03:01]}  Nf6 {[%clk 0:02:58]} 3. e3 {[%clk 0:03:01]}  g6 {[%clk 0:02:58]} 4. b4 {[%clk 0:03:01]}  Bg7 {[%clk 0:02:59]} 5. Bb2 {[%clk 0:03:02]}  O-O {[%clk 0:02:59]} 6. Be2 {[%clk 0:03:02]}  b6 {[%clk 0:02:58]} 7. O-O {[%clk 0:03:02]}  c5 {[%clk 0:02:59]} 8. bxc5 {[%clk 0:03:01]}  bxc5 {[%clk 0:02:59]} 9. c4 {[%clk 0:02:56]}  d4 {[%clk 0:02:34]} 10. exd4 {[%clk 0:02:40]}  Nh5 {[%clk 0:02:27]} 11. Ne5 {[%clk 0:02:15]}  Bxe5 {[%clk 0:02:26]} 12. dxe5 {[%clk 0:02:16]}  Nc6 {[%clk 0:02:26]} 13. Bxh5 {[%clk 0:02:15]}  gxh5 {[%clk 0:02:20]} 14. Qxh5 {[%clk 0:02:16]}  Rb8 {[%clk 0:02:20]} 15. Bc3 {[%clk 0:02:06]}  Nd4 {[%clk 0:02:19]} 16. Qg5+ {[%clk 0:01:46]}  Kh8 {[%clk 0:02:19]} 17. e6 {[%clk 0:01:43]}  f6 {[%clk 0:02:01]} 18. Qxc5 {[%clk 0:01:43]}  Ne2+ {[%clk 0:01:40]} 19. Kh1 {[%clk 0:01:43]}  Rg8 {[%clk 0:01:32]} 20. Qe3 {[%clk 0:01:32]}  Nxc3 {[%clk 0:01:20]} 21. Nxc3 {[%clk 0:01:33]}  Rb3 {[%clk 0:01:15]} 22. Rfb1 {[%clk 0:01:26]}  Bb7 {[%clk 0:01:15]} 23. f3 {[%clk 0:01:18]}  Rxb1+ {[%clk 0:01:14]} 24. Rxb1 {[%clk 0:01:18]}  Bc6 {[%clk 0:01:13]} 25. d4 {[%clk 0:01:17]}  Qa5 {[%clk 0:01:11]} 26. d5 {[%clk 0:01:12]}  Be8 {[%clk 0:01:09]} 27. Ne4 {[%clk 0:01:06]}  Bg6 {[%clk 0:01:04]} 28. h4 {[%clk 0:01:01]}  Qc7 {[%clk 0:00:58]} 29. d6 {[%clk 0:00:38]}  exd6 {[%clk 0:00:53]} 30. Qd4 {[%clk 0:00:39]}  Rf8 {[%clk 0:00:44]} 31. Nxf6 {[%clk 0:00:25]}  Qg7 {[%clk 0:00:44]} 32. e7 {[%clk 0:00:15]}  Qxe7 {[%clk 0:00:43]} 33. Nd5+ {[%clk 0:00:12]}  Qe5 {[%clk 0:00:42]} 34. Qxe5+ {[%clk 0:00:12]}  dxe5 {[%clk 0:00:42]} 35. Rb7 {[%clk 0:00:12]}  e4 {[%clk 0:00:43]} 36. fxe4 {[%clk 0:00:09]}  Bxe4 {[%clk 0:00:42]} 37. Rxa7 {[%clk 0:00:09]}  Rf2 {[%clk 0:00:31]} 38. Ra8+ {[%clk 0:00:08]}  Kg7 {[%clk 0:00:30]} 39. Ra7+ {[%clk 0:00:08]}  Kf8 {[%clk 0:00:28]} 40. Ne3 {[%clk 0:00:09]}  Re2 {[%clk 0:00:27]} 41. Kg1 {[%clk 0:00:02]}  Rxe3 {[%clk 0:00:26]} 42. Kf2 {[%clk 0:00:02]}  Rc3 {[%clk 0:00:26]} 43. Ra4 {[%clk 0:00:02]}  Rc2+ {[%clk 0:00:24]} 44. Ke3 {[%clk 0:00:02]}  Bxg2 {[%clk 0:00:24]} 45. Rb4 {[%clk 0:00:03]}  Ra2 {[%clk 0:00:23]} 46. a4 {[%clk 0:00:03]}  Bc6 {[%clk 0:00:22]} 47. Kd4 {[%clk 0:00:04]}  Bxa4 {[%clk 0:00:23]} 48. Rb7 {[%clk 0:00:04]}  h5 {[%clk 0:00:22]} 49. Ke5 {[%clk 0:00:04]}  Rh2 {[%clk 0:00:21]} 50. Kf6 {[%clk 0:00:04]}  Ke8 {[%clk 0:00:20]} 51. Rb8+ {[%clk 0:00:04]}  Kd7 {[%clk 0:00:20]} 52. Kg5 {[%clk 0:00:05]}  Bd1 {[%clk 0:00:18]} 53. Rb7+ {[%clk 0:00:05]}  Kc6 {[%clk 0:00:18]} 54. Rb5 {[%clk 0:00:06]}  Rg2+ {[%clk 0:00:17]} 55. Kh6 {[%clk 0:00:06]}  Rh2 {[%clk 0:00:16]} 56. Rb1 {[%clk 0:00:06]}  Be2 {[%clk 0:00:14]} 57. Re1 {[%clk 0:00:06]}  Bxc4 {[%clk 0:00:11]} 58. Re4 {[%clk 0:00:05]}  Bd5 {[%clk 0:00:10]} 59. Rf4 {[%clk 0:00:06]}  Kd6 {[%clk 0:00:09]} 60. Rf5 {[%clk 0:00:06]}  Ke6 {[%clk 0:00:09]} 61. Rxh5 {[%clk 0:00:06]}  Rg2 {[%clk 0:00:07]} 62. Rg5 {[%clk 0:00:06]}  Ra2 {[%clk 0:00:07]} 63. h5 {[%clk 0:00:07]}  Be4 {[%clk 0:00:07]} 64. Kg7 {[%clk 0:00:07]}  Ra7+ {[%clk 0:00:06]} 65. Kf8 {[%clk 0:00:06]}  Kf6 {[%clk 0:00:05]} 66. Re5 {[%clk 0:00:01]}  Kxe5 {[%clk 0:00:03]} 67. h6 {[%clk 0:00:02]}  Kf6 {[%clk 0:00:03]} 68. Ke8 {[%clk 0:00:02]}  Bf5 {[%clk 0:00:02]} 69. Kd8 {[%clk 0:00:02]}  Rd7+ {[%clk 0:00:01]} 70. Kc8 {[%clk 0:00:03]}  Rh7+ {[%clk 0:00:01]} 71. Kd8 {[%clk 0:00:03]}  Rxh6 {[%clk 0:00:02]} 72. Kc7 {[%clk 0:00:04]}  Rh7+ {[%clk 0:00:01]} 73. Kd6 {[%clk 0:00:05]}  Rd7+ {[%clk 0:00:01]} 74. Kc5 {[%clk 0:00:06]}  Ke5 {[%clk 0:00:01]} 75. Kc6 {[%clk 0:00:07]}  Re7 {[%clk 0:00:01]} 76. Kb6 {[%clk 0:00:08]}  Be4 {[%clk 0:00:01]} 77. Kc5 {[%clk 0:00:08]} 1/2-1/2


[Site "https://www.chess.com"]

[Event "Titled Tuesday Blitz January 31 Late 2023"]
[White "Bongo Akanga Ndjila, Barthelemy"]
[Black "Kovacs, Klara"]
[WhiteFideId "10609431"]
[BlackFideId "733210"]
[WhiteElo "1824"]
[BlackElo "2121"]
[Result "0-1"]
[Round "02"]
[TimeControl "180+2"]
[Date "2023.01.31"]
[WhiteClock "0:00:15"]
[BlackClock "0:00:18"]

1. d4 {[%clk 0:03:00]}  e6 {[%clk 0:02:45]} 2. c4 {[%clk 0:03:00]}  Nf6 {[%clk 0:02:45]} 3. Nf3 {[%clk 0:02:57]}  d5 {[%clk 0:02:46]} 4. cxd5 {[%clk 0:02:56]}  exd5 {[%clk 0:02:46]} 5. Bg5 {[%clk 0:02:56]}  Be7 {[%clk 0:02:45]} 6. Nc3 {[%clk 0:02:56]}  O-O {[%clk 0:02:44]} 7. Qc2 {[%clk 0:02:56]}  h6 {[%clk 0:02:45]} 8. Bh4 {[%clk 0:02:56]}  c6 {[%clk 0:02:45]} 9. e3 {[%clk 0:02:56]}  Nh5 {[%clk 0:02:45]} 10. Bxe7 {[%clk 0:02:53]}  Qxe7 {[%clk 0:02:45]} 11. Be2 {[%clk 0:02:50]}  Nd7 {[%clk 0:02:41]} 12. O-O {[%clk 0:02:48]}  f5 {[%clk 0:02:37]} 13. Ne5 {[%clk 0:02:45]}  Nxe5 {[%clk 0:02:07]} 14. Bxh5 {[%clk 0:02:45]}  Ng4 {[%clk 0:02:00]} 15. Bxg4 {[%clk 0:02:39]}  fxg4 {[%clk 0:01:59]} 16. Rae1 {[%clk 0:02:32]}  Bf5 {[%clk 0:01:53]} 17. Qe2 {[%clk 0:02:30]}  Rae8 {[%clk 0:01:50]} 18. a3 {[%clk 0:02:13]}  a5 {[%clk 0:01:48]} 19. Na4 {[%clk 0:02:11]}  Bc8 {[%clk 0:01:14]} 20. Rc1 {[%clk 0:02:07]}  Qh4 {[%clk 0:01:14]} 21. Qd2 {[%clk 0:02:03]}  Rf5 {[%clk 0:01:13]} 22. f3 {[%clk 0:01:13]}  g3 {[%clk 0:01:02]} 23. hxg3 {[%clk 0:01:02]}  Qxg3 {[%clk 0:01:03]} 24. Qf2 {[%clk 0:01:01]}  Qg6 {[%clk 0:00:48]} 25. Nb6 {[%clk 0:00:51]}  Be6 {[%clk 0:00:44]} 26. b4 {[%clk 0:00:46]}  axb4 {[%clk 0:00:43]} 27. axb4 {[%clk 0:00:45]}  Rg5 {[%clk 0:00:43]} 28. Qd2 {[%clk 0:00:25]}  Rg3 {[%clk 0:00:36]} 29. Rf2 {[%clk 0:00:25]}  Bh3 {[%clk 0:00:35]} 30. Ra1 {[%clk 0:00:21]}  h5 {[%clk 0:00:23]} 31. Kh2 {[%clk 0:00:20]}  Bf5 {[%clk 0:00:22]} 32. Ra8 {[%clk 0:00:17]}  Rxa8 {[%clk 0:00:21]} 33. Nxa8 {[%clk 0:00:17]}  h4 {[%clk 0:00:19]} 34. Nb6 {[%clk 0:00:16]}  h3 {[%clk 0:00:18]} 35. gxh3 {[%clk 0:00:15]}  Rxh3# {[%clk 0:00:18]} 0-1


[Site "https://www.chess.com"]

[Event "Titled Tuesday Blitz January 31 Late 2023"]
[White "Souza, Gustavo Horokoski De"]
[Black "Forgacs, Attila Jr."]
[WhiteFideId "2146584"]
[BlackFideId "773654"]
[WhiteElo "1943"]
[BlackElo "2264"]
[Result "0-1"]
[Round "02"]
[TimeControl "180+2"]
[Date "2023.01.31"]
[WhiteClock "0:00:08"]
[BlackClock "0:00:03"]

1. d4 {[%clk 0:02:55]}  Nf6 {[%clk 0:03:00]} 2. c4 {[%clk 0:02:54]}  e6 {[%clk 0:03:00]} 3. Nc3 {[%clk 0:02:53]}  Bb4 {[%clk 0:03:00]} 4. e3 {[%clk 0:02:53]}  c5 {[%clk 0:03:00]} 5. Ne2 {[%clk 0:02:52]}  Ne4 {[%clk 0:02:51]} 6. Qc2 {[%clk 0:02:44]}  f5 {[%clk 0:02:45]} 7. a3 {[%clk 0:02:40]}  Bxc3+ {[%clk 0:02:45]} 8. Nxc3 {[%clk 0:02:40]}  Nxc3 {[%clk 0:02:23]} 9. Qxc3 {[%clk 0:02:41]}  cxd4 {[%clk 0:02:15]} 10. exd4 {[%clk 0:02:37]}  O-O {[%clk 0:02:14]} 11. Bf4 {[%clk 0:02:30]}  Nc6 {[%clk 0:02:11]} 12. Be2 {[%clk 0:02:26]}  d6 {[%clk 0:02:02]} 13. O-O {[%clk 0:02:25]}  e5 {[%clk 0:01:46]} 14. dxe5 {[%clk 0:02:20]}  dxe5 {[%clk 0:01:46]} 15. Rad1 {[%clk 0:02:00]}  Qe7 {[%clk 0:01:39]} 16. Bc1 {[%clk 0:01:57]}  Nd4 {[%clk 0:01:36]} 17. Rfe1 {[%clk 0:01:49]}  Be6 {[%clk 0:01:15]} 18. b4 {[%clk 0:01:31]}  Rac8 {[%clk 0:01:10]} 19. c5 {[%clk 0:01:31]}  Rfd8 {[%clk 0:01:00]} 20. Bf1 {[%clk 0:01:17]}  Nc6 {[%clk 0:01:00]} 21. Bb2 {[%clk 0:01:11]}  e4 {[%clk 0:00:52]} 22. Bc4 {[%clk 0:01:03]}  Bxc4 {[%clk 0:00:49]} 23. Qxc4+ {[%clk 0:01:03]}  Qf7 {[%clk 0:00:50]} 24. Qc3 {[%clk 0:01:01]}  Ne7 {[%clk 0:00:35]} 25. h3 {[%clk 0:00:46]}  Nd5 {[%clk 0:00:35]} 26. Qe5 {[%clk 0:00:42]}  Nc7 {[%clk 0:00:22]} 27. Rxd8+ {[%clk 0:00:35]}  Rxd8 {[%clk 0:00:22]} 28. Re3 {[%clk 0:00:33]}  Ne6 {[%clk 0:00:20]} 29. Rg3 {[%clk 0:00:31]}  f4 {[%clk 0:00:12]} 30. Rg4 {[%clk 0:00:26]}  e3 {[%clk 0:00:12]} 31. fxe3 {[%clk 0:00:22]}  fxe3 {[%clk 0:00:09]} 32. Qxe3 {[%clk 0:00:20]}  h5 {[%clk 0:00:08]} 33. Rg3 {[%clk 0:00:17]}  Rd1+ {[%clk 0:00:05]} 34. Kh2 {[%clk 0:00:17]}  Rd7 {[%clk 0:00:05]} 35. Be5 {[%clk 0:00:15]}  Nf8 {[%clk 0:00:03]} 36. Rxg7+ {[%clk 0:00:13]}  Qxg7 {[%clk 0:00:03]} 37. Bxg7 {[%clk 0:00:14]}  Rxg7 {[%clk 0:00:04]} 38. Qh6 {[%clk 0:00:13]}  Nh7 {[%clk 0:00:02]} 39. Qxh5 {[%clk 0:00:13]}  Nf6 {[%clk 0:00:03]} 40. Qe5 {[%clk 0:00:12]}  Kf7 {[%clk 0:00:03]} 41. Qc7+ {[%clk 0:00:12]}  Kg6 {[%clk 0:00:04]} 42. Qg3+ {[%clk 0:00:12]}  Kf7 {[%clk 0:00:04]} 43. Qb3+ {[%clk 0:00:12]}  Kg6 {[%clk 0:00:05]} 44. b5 {[%clk 0:00:12]}  Rd7 {[%clk 0:00:05]} 45. Qc2+ {[%clk 0:00:11]}  Kf7 {[%clk 0:00:05]} 46. c6 {[%clk 0:00:12]}  Rc7 {[%clk 0:00:04]} 47. Qb3+ {[%clk 0:00:10]}  Ke7 {[%clk 0:00:02]} 48. cxb7 {[%clk 0:00:10]}  Rxb7 {[%clk 0:00:03]} 49. Qe3+ {[%clk 0:00:09]}  Kd6 {[%clk 0:00:03]} 50. a4 {[%clk 0:00:09]}  Nd5 {[%clk 0:00:03]} 51. Qg3+ {[%clk 0:00:09]}  Kd7 {[%clk 0:00:03]} 52. Qe5 {[%clk 0:00:09]}  Nc7 {[%clk 0:00:03]} 53. Qd5+ {[%clk 0:00:08]}  Nxd5 {[%clk 0:00:03]} 54. h4 {[%clk 0:00:08]}  Nc3 {[%clk 0:00:03]} 55. g3 {[%clk 0:00:07]}  Nxa4 {[%clk 0:00:03]} 56. g4 {[%clk 0:00:08]}  Rxb5 {[%clk 0:00:03]} 0-1


[Site "https://www.chess.com"]

[Event "Titled Tuesday Blitz January 31 Late 2023"]
[White "Saya, Ethan"]
[Black "mestrefeitosa19"]
[WhiteFideId "26095181"]
[WhiteElo "2181"]
[BlackElo "2069"]
[Result "1-0"]
[Round "02"]
[TimeControl "180+2"]
[Date "2023.01.31"]
[WhiteClock "0:01:06"]
[BlackClock "0:00:05"]

1. e4 {[%clk 0:03:00]}  e5 {[%clk 0:02:55]} 2. Nf3 {[%clk 0:02:59]}  Nc6 {[%clk 0:02:55]} 3. Bb5 {[%clk 0:02:58]}  Nd4 {[%clk 0:02:55]} 4. Nxd4 {[%clk 0:02:58]}  exd4 {[%clk 0:02:56]} 5. O-O {[%clk 0:02:53]}  Bc5 {[%clk 0:02:54]} 6. c3 {[%clk 0:02:53]}  c6 {[%clk 0:02:54]} 7. Bd3 {[%clk 0:02:48]}  Nf6 {[%clk 0:02:55]} 8. e5 {[%clk 0:02:45]}  Nd5 {[%clk 0:02:49]} 9. Qg4 {[%clk 0:02:43]}  g6 {[%clk 0:02:06]} 10. cxd4 {[%clk 0:02:41]}  d6 {[%clk 0:02:07]} 11. Qe4 {[%clk 0:02:39]}  Bf5 {[%clk 0:02:05]} 12. Qf3 {[%clk 0:02:35]}  Bxd4 {[%clk 0:01:50]} 13. Bxf5 {[%clk 0:02:34]}  gxf5 {[%clk 0:01:51]} 14. exd6 {[%clk 0:02:35]}  Qxd6 {[%clk 0:01:47]} 15. Re1+ {[%clk 0:02:31]}  Ne7 {[%clk 0:01:43]} 16. Qxf5 {[%clk 0:02:28]}  O-O {[%clk 0:01:05]} 17. Qg5+ {[%clk 0:02:22]}  Ng6 {[%clk 0:01:05]} 18. Nc3 {[%clk 0:02:22]}  Rae8 {[%clk 0:00:52]} 19. Re3 {[%clk 0:02:12]}  Bxe3 {[%clk 0:00:46]} 20. dxe3 {[%clk 0:02:13]}  Qe5 {[%clk 0:00:39]} 21. e4 {[%clk 0:02:09]}  Qxg5 {[%clk 0:00:37]} 22. Bxg5 {[%clk 0:02:10]}  Re5 {[%clk 0:00:37]} 23. Be3 {[%clk 0:02:08]}  b6 {[%clk 0:00:33]} 24. Rd1 {[%clk 0:02:08]}  Rfe8 {[%clk 0:00:32]} 25. Rd7 {[%clk 0:02:06]}  R5e7 {[%clk 0:00:31]} 26. Rd2 {[%clk 0:02:05]}  Ne5 {[%clk 0:00:30]} 27. b3 {[%clk 0:02:04]}  Ng4 {[%clk 0:00:30]} 28. Bg5 {[%clk 0:02:01]}  Re5 {[%clk 0:00:29]} 29. f4 {[%clk 0:02:00]}  R5e6 {[%clk 0:00:25]} 30. h3 {[%clk 0:01:58]}  h6 {[%clk 0:00:16]} 31. Bh4 {[%clk 0:01:49]}  Nf6 {[%clk 0:00:05]} 32. e5 {[%clk 0:01:19]}  Nh5 {[%clk 0:00:05]} 33. g3 {[%clk 0:01:17]}  Rg6 {[%clk 0:00:05]} 34. Kf2 {[%clk 0:01:17]}  Kh7 {[%clk 0:00:05]} 35. Rd7 {[%clk 0:01:16]}  Rg7 {[%clk 0:00:03]} 36. Ne4 {[%clk 0:01:14]}  Reg8 {[%clk 0:00:04]} 37. Nf6+ {[%clk 0:01:10]}  Nxf6 {[%clk 0:00:03]} 38. exf6 {[%clk 0:01:11]}  Rg6 {[%clk 0:00:02]} 39. Rxf7+ {[%clk 0:01:11]}  Kh8 {[%clk 0:00:03]} 40. Rxa7 {[%clk 0:01:11]}  Rd8 {[%clk 0:00:03]} 41. f7 {[%clk 0:01:09]}  Rf8 {[%clk 0:00:03]} 42. Kf3 {[%clk 0:01:06]}  Kg7 {[%clk 0:00:03]} 43. Rb7 {[%clk 0:01:05]}  b5 {[%clk 0:00:02]} 44. g4 {[%clk 0:01:02]}  Rxf7 {[%clk 0:00:02]} 45. Rxf7+ {[%clk 0:01:03]}  Kxf7 {[%clk 0:00:02]} 46. f5 {[%clk 0:01:03]}  Rd6 {[%clk 0:00:02]} 47. Ke3 {[%clk 0:01:03]}  Rd5 {[%clk 0:00:03]} 48. Bg3 {[%clk 0:01:01]}  h5 {[%clk 0:00:04]} 49. Bf4 {[%clk 0:01:00]}  hxg4 {[%clk 0:00:04]} 50. hxg4 {[%clk 0:01:01]}  c5 {[%clk 0:00:05]} 51. Ke4 {[%clk 0:01:01]}  Rd4+ {[%clk 0:00:05]} 52. Ke5 {[%clk 0:01:01]}  Rd1 {[%clk 0:00:05]} 53. g5 {[%clk 0:01:02]}  Re1+ {[%clk 0:00:05]} 54. Kd5 {[%clk 0:01:02]}  c4 {[%clk 0:00:05]} 55. Be5 {[%clk 0:01:00]}  cxb3 {[%clk 0:00:04]} 56. axb3 {[%clk 0:01:01]}  Rb1 {[%clk 0:00:04]} 57. g6+ {[%clk 0:01:01]}  Kg8 {[%clk 0:00:04]} 58. f6 {[%clk 0:01:01]}  Rf1 {[%clk 0:00:03]} 59. f7+ {[%clk 0:01:01]}  Kf8 {[%clk 0:00:03]} 60. Bd6+ {[%clk 0:01:01]}  Kg7 {[%clk 0:00:02]} 61. f8=Q+ {[%clk 0:01:02]}  Rxf8 {[%clk 0:00:01]} 62. Bxf8+ {[%clk 0:01:03]}  Kxf8 {[%clk 0:00:02]} 63. Kc5 {[%clk 0:01:02]}  Kg7 {[%clk 0:00:02]} 64. Kxb5 {[%clk 0:01:03]}  Kxg6 {[%clk 0:00:03]} 65. Kc6 {[%clk 0:01:04]}  Kf6 {[%clk 0:00:04]} 66. b4 {[%clk 0:01:05]}  Ke6 {[%clk 0:00:05]} 67. b5 {[%clk 0:01:06]} 1-0


[Site "https://www.chess.com"]